bitfinex-derivatives/quotes_ETHF0:USTF0_20250115
["timestamp","ask_amount","ask_price","bid_price","bid_amount"]
[1736914593247,2.72888707,3226.0,3225.4,3.51798]
[1736914593440,6.22069096,3226.0,3225.9,40.8054034]
[1736914593641,6.27029346,3226.0,3225.9,40.8054034]
[1736914594039,6.27029346,3226.0,3225.9,0.0054034]
[1736914595449,6.22069096,3226.0,3225.9,0.0054034]
[1736914595850,6.27029399,3226.0,3225.9,0.0054034]
[1736914596447,6.22069096,3226.0,3225.9,0.0054034]
[1736914596647,6.27029465,3226.0,3225.9,0.0054034]
[1736914598440,6.27029762,3226.0,3225.9,0.0054034]
[1736914598642,6.27029758,3226.0,3225.9,0.0054034]
[1736914598849,6.22069096,3226.0,3225.9,0.0054034]
[1736914599250,6.22069096,3226.0,3225.9,40.8054034]
[1736914600449,3.84190806,3242.9,3225.9,40.8054034]
[1736914600450,2.41875707,3226.3,3225.9,40.8054034]
[1736914600754,2.41875707,3226.0,3225.9,40.8054034]
[1736914601342,5.83563076,3226.0,3225.9,40.8054034]
[1736914602764,6.14576076,3226.0,3225.9,40.8054034]
[1736914605355,6.14576076,3226.0,3225.9,0.0054034]
[1736914605650,6.14576076,3226.0,3225.3,3.2078]
[1736914605651,0.31018,3225.4,3225.3,3.2078]
[1736914605957,2.72893707,3225.4,3225.3,44.0078]
[1736914606156,6.2566874,3225.4,3225.3,44.0078]
[1736914606353,5.9465074,3225.4,3225.3,44.0078]
[1736914606548,3.52775033,3225.4,3225.3,44.0078]
[1736914606746,5.9465074,3225.4,3225.3,44.0078]
[1736914606949,2.72893707,3225.4,3225.3,44.0078]
[1736914607156,6.2566874,3225.4,3225.3,44.0078]
[1736914607953,5.9465074,3225.4,3225.3,44.0078]
[1736914608657,6.2566874,3225.4,3225.3,40.8]
[1736914611855,8.67544447,3225.4,3225.3,40.8]
[1736914612057,6.2566874,3225.4,3225.3,40.8]
[1736914613463,0.31022,3225.0,3224.9,0.4974]
[1736914613652,2.72897707,3225.0,3224.9,0.4974]
[1736914613861,5.97188065,3225.0,3224.9,0.4974]
[1736914614361,5.97188065,3225.0,3224.9,41.2974]
[1736914617055,5.97188065,3225.0,3224.9,40.8]
[1736914618660,5.97188065,3225.0,3224.9,41.256]
[1736914620555,0.77544,3225.6,3224.9,41.256]
[1736914620556,3.2078,3225.7,3225.2,0.3102]
[1736914620855,3.36255538,3225.5,3225.3,0.4663]
[1736914621054,3.36255538,3225.5,3225.4,0.31019]
[1736914621253,5.62655707,3226.1,3225.3,8.6741]
[1736914621459,2.41875707,3226.1,3225.9,0.31013]
[1736914621657,2.41875707,3226.1,3226.0,0.77643]
[1736914622056,5.7063197,3226.1,3226.0,0.77643]
[1736914622755,2.72884707,3226.4,3226.1,0.31012]
[1736914622959,0.3101,3226.3,3226.1,0.31012]
[1736914623160,3.45056032,3226.3,3226.1,3.2078]
[1736914623365,3.2078,3226.5,3226.1,3.2078]
[1736914623366,3.2078,3226.5,3226.1,8.2078]
[1736914623565,2.41875707,3227.0,3226.1,3.2078]
[1736914623861,2.41875707,3226.7,3226.6,0.31007]
[1736914625163,2.41875707,3227.0,3226.6,3.2078]
[1736914625368,3.2078,3227.2,3227.1,0.31002]
[1736914625555,3.2078,3227.2,3227.0,0.31003]
[1736914625760,2.41875707,3227.1,3226.8,0.4684]
[1736914625957,2.72879707,3226.9,3226.8,0.4684]
[1736914626157,2.41875707,3226.9,3226.8,0.4684]
[1736914626463,2.72879707,3226.9,3226.8,0.4684]
[1736914626664,2.72879707,3226.9,3226.8,41.2684]
[1736914626862,2.41875707,3226.9,3226.8,41.2684]
[1736914627361,2.41875707,3226.9,3226.6,3.2078]
[1736914627563,2.41875707,3226.9,3226.3,0.4583]
[1736914627564,3.2078,3226.8,3226.3,0.4583]
[1736914627763,2.41875707,3226.6,3226.3,0.4583]
[1736914628261,3.32027466,3226.7,3226.3,0.4583]
[1736914628461,3.51786,3226.8,3226.4,0.31009]
[1736914628665,3.51786,3226.8,3226.3,0.4583]
[1736914628967,3.32027466,3226.7,3226.5,0.31008]
[1736914629966,3.32027466,3226.7,3226.4,0.31009]
[1736914630269,2.41875707,3226.6,3226.3,0.4583]
[1736914630564,2.41875707,3226.6,3226.5,0.31008]
[1736914630766,0.9486,3226.7,3226.6,0.31007]
[1736914630968,3.43136818,3226.5,3226.4,0.31009]
[1736914631272,3.88986818,3226.7,3226.6,0.31007]
[1736914631570,0.4585,3226.7,3226.6,0.31007]
[1736914631771,3.88986818,3226.7,3226.6,0.31007]
[1736914632361,3.88986818,3226.7,3226.4,0.31009]
[1736914632559,3.88986818,3226.7,3226.5,0.31007]
[1736914633466,3.88986818,3226.7,3226.4,0.31009]
[1736914633770,3.88986818,3226.7,3226.6,0.31007]
[1736914634371,3.88986818,3226.7,3226.5,0.31007]
[1736914634972,3.88986818,3226.7,3226.6,0.31007]
[1736914639177,3.88986818,3226.7,3226.3,41.2583]
[1736914639369,0.4772,3226.6,3226.4,0.31009]
[1736914639675,0.4772,3226.6,3226.5,0.31008]
[1736914640075,6.15568417,3226.6,3226.3,40.8]
[1736914640374,6.15568417,3226.6,3226.0,3.2078]
[1736914640568,0.31012,3226.1,3226.0,3.2078]
[1736914640773,0.31012,3226.1,3226.0,44.0078]
[1736914640972,4.0491471,3226.1,3226.0,44.0078]
[1736914641373,4.0987468,3226.1,3226.0,44.0078]
[1736914641980,0.31016,3225.7,3225.4,3.98828]
[1736914642177,3.7886268,3226.1,3225.4,3.98828]
[1736914642178,0.78947,3225.6,3225.4,3.2078]
[1736914642476,4.5276028,3225.6,3225.5,40.8]
[1736914643371,4.8377728,3225.6,3225.5,40.8]
[1736914644174,4.88738247,3225.6,3225.5,40.8]
[1736914644575,4.88738356,3225.6,3225.5,40.8]
[1736914644883,4.57721356,3225.6,3224.8,0.4703]
[1736914645179,2.72896707,3225.2,3224.9,41.11023]
[1736914645375,0.31022,3225.1,3224.9,40.8]
[1736914645675,3.82119089,3225.1,3224.9,40.8]
[1736914645875,3.82119089,3225.1,3225.0,0.31022]
[1736914646384,3.82119089,3225.1,3224.9,41.11023]
[1736914647484,3.82119089,3225.1,3224.9,40.8]
[1736914647683,3.82119089,3225.1,3224.9,41.11023]
[1736914647884,4.13141089,3225.1,3224.9,40.8]
[1736914648277,3.82119089,3225.1,3224.9,40.8]
[1736914650085,4.13141089,3225.1,3224.9,40.8]
[1736914650883,3.82119089,3225.1,3224.9,41.11023]
[1736914651284,3.82119089,3225.1,3224.9,40.8]
[1736914651490,4.13141089,3225.1,3224.9,40.8]
[1736914651687,3.82119089,3225.1,3224.9,40.8]
[1736914652290,4.13141089,3225.1,3224.9,40.8]
[1736914653390,0.31022,3225.0,3224.9,40.8]
[1736914653692,4.24370142,3225.0,3224.9,40.8]
[1736914654184,4.24370142,3225.0,3224.7,0.31025]
[1736914654185,4.24370142,3225.0,3224.5,0.9507]
[1736914654388,3.93348142,3225.0,3224.5,0.9507]
[1736914654693,0.31025,3224.8,3224.6,40.8]
[1736914656692,3.34948361,3224.7,3224.6,40.8]
[1736914659087,3.34948361,3224.7,3224.6,44.31806]
[1736914659289,3.518,3225.3,3224.6,50.2748]
[1736914659290,3.2078,3225.3,3224.6,50.2748]
[1736914659490,3.2078,3225.3,3225.2,0.31021]
[1736914660182,3.2078,3225.3,3225.2,41.11021]
[1736914660689,3.2078,3225.3,3225.2,40.8]
[1736914660890,6.8168157,3225.3,3225.2,40.8]
[1736914661086,0.31022,3225.1,3224.9,0.31023]
[1736914661493,3.66853074,3225.0,3224.8,0.31024]
[1736914661686,3.35830074,3225.0,3224.6,3.2078]
[1736914661883,0.31023,3225.0,3224.8,0.31024]
[1736914662088,0.31023,3225.0,3224.9,40.8]
[1736914662489,3.57980533,3225.0,3224.9,40.8]
[1736914663301,3.26957533,3225.0,3224.9,41.11023]
[1736914663596,3.518,3225.3,3224.9,40.8]
[1736914663801,3.25579073,3225.1,3225.0,0.76282]
[1736914664097,3.56600073,3225.2,3225.0,0.9133]
[1736914664288,0.31021,3225.2,3225.0,0.9133]
[1736914664489,3.5385057,3225.1,3225.0,1.22352]
[1736914665690,3.5385057,3225.1,3225.0,0.9133]
[1736914665896,3.8487157,3225.1,3225.0,0.9133]
[1736914666193,0.31021,3225.1,3225.0,0.9133]
[1736914666492,3.42897213,3225.1,3225.0,0.9133]
[1736914666692,3.42897213,3225.1,3225.0,0.4607]
[1736914667094,3.56833609,3225.2,3225.0,0.4607]
[1736914667294,0.31021,3225.2,3225.0,0.4607]
[1736914667796,3.25812609,3225.1,3225.0,0.4607]
[1736914668004,3.25812609,3225.1,3225.0,0.77092]
[1736914668301,3.31724208,3225.2,3225.1,0.31021]
[1736914668494,3.2078,3225.3,3225.2,0.31021]
[1736914668987,3.2078,3225.3,3225.0,0.4607]
[1736914669194,6.79827703,3225.3,3225.1,0.31021]
[1736914670993,6.48807703,3225.3,3225.2,0.31021]
[1736914671396,6.48807703,3225.3,3224.9,40.8]
[1736914671600,6.48807703,3225.3,3225.2,0.31021]
[1736914672397,6.48807703,3225.3,3225.1,0.79461]
[1736914673098,6.48807703,3225.3,3225.1,0.4844]
[1736914673296,6.48807703,3225.3,3225.2,0.31021]
[1736914673501,6.48807703,3225.3,3225.1,0.4844]
[1736914673702,6.79827703,3225.3,3225.1,0.79461]
[1736914674500,6.48807703,3225.3,3225.2,0.31021]
[1736914675204,0.31022,3225.1,3224.9,41.11023]
[1736914675602,3.51009934,3225.0,3224.9,41.11023]
[1736914676206,3.51009934,3225.0,3224.9,0.31023]
[1736914677401,0.4783,3225.2,3225.1,0.31021]
[1736914678204,3.2078,3225.3,3224.7,40.8]
[1736914678404,3.2078,3225.3,3225.2,0.31021]
[1736914681710,0.5003,3225.6,3225.2,3.2078]
[1736914682012,3.51794,3225.9,3225.7,0.31015]
[1736914682212,0.4795,3225.8,3225.7,0.31015]
[1736914682412,3.71144056,3225.8,3225.7,0.31015]
[1736914683006,4.02159056,3225.8,3225.7,0.31015]
[1736914683408,6.13019763,3225.8,3225.4,0.4768]
[1736914683613,0.31019,3225.4,3225.3,3.2078]
[1736914684008,4.80071897,3225.4,3225.3,3.2078]
[1736914684207,4.80071897,3225.4,3224.8,0.31024]
[1736914684208,0.3102,3225.3,3224.8,0.31024]
[1736914684411,0.4836,3225.3,3225.2,0.31021]
[1736914684714,4.26145804,3225.3,3225.1,0.31021]
[1736914685120,3.95125804,3225.3,3225.2,0.31021]
[1736914685416,3.95125804,3225.3,3224.7,40.8]
[1736914685609,0.31022,3225.1,3224.9,0.31023]
[1736914685811,0.31023,3225.0,3224.8,0.31024]
[1736914686007,3.276185,3225.0,3224.9,0.31023]
[1736914686314,0.4836,3225.3,3225.0,0.31022]
[1736914686315,3.49680577,3225.1,3225.0,0.31022]
[1736914686613,0.4836,3225.3,3225.2,0.31021]
[1736914687018,3.98040577,3225.3,3225.2,0.31021]
[1736914687419,3.49680577,3225.3,3225.2,0.31021]
[1736914687814,3.22751693,3225.5,3225.3,0.3102]
[1736914688116,3.22751693,3225.5,3225.4,0.31019]
[1736914688315,3.2078,3225.6,3225.2,1.46]
[1736914688619,3.2078,3225.6,3225.5,0.31018]
[1736914689120,9.01837412,3225.6,3225.2,1.46]
[1736914689619,9.01837412,3225.6,3225.1,3.2078]
[1736914689813,0.31018,3225.5,3225.3,0.31019]
[1736914690009,9.01837412,3225.6,3225.4,0.31019]
[1736914690010,9.32854412,3225.6,3225.4,0.31019]
[1736914690319,3.3259403,3225.4,3225.3,0.3102]
[1736914690517,3.3259403,3225.5,3225.4,0.31019]
[1736914690812,3.6965,3226.4,3225.3,2.41875707]
[1736914691018,3.6965,3226.4,3225.7,0.7754]
[1736914691318,3.35585623,3226.2,3226.1,0.31012]
[1736914692106,6.11525707,3226.4,3226.1,0.31012]
[1736914692313,2.91725707,3226.7,3226.6,0.31007]
[1736914692512,2.41875707,3226.7,3226.6,0.31007]
[1736914692712,3.27038374,3226.7,3226.6,0.31007]
[1736914693014,12.14008944,3226.8,3226.4,3.2078]
[1736914693015,0.01704,3226.8,3226.4,3.2078]
[1736914693215,0.01704,3226.8,3226.7,0.31006]
[1736914693413,12.12304944,3227.3,3226.7,45.8]
[1736914693621,9.10808944,3227.3,3227.2,5.93656707]
[1736914694420,9.10808944,3227.3,3227.2,12.40816707]
[1736914694610,0.4653,3228.2,3227.2,12.87318707]
[1736914694815,0.4653,3228.2,3228.1,0.30993]
[1736914695816,2.90875707,3228.3,3227.6,3.2078]
[1736914695817,0.49,3228.3,3228.2,0.30992]
[1736914696319,4.05715863,3228.3,3228.2,0.30992]
[1736914696626,4.05715863,3228.3,3228.2,41.10992]
[1736914697012,2.41875707,3228.6,3228.2,40.8]
[1736914697217,2.41875707,3228.6,3228.2,41.10991]
[1736914697413,3.29811718,3228.5,3228.3,0.3099]
[1736914697613,3.29811718,3228.5,3228.2,40.8]
[1736914697816,3.60800718,3228.5,3228.2,40.8]
[1736914698021,3.29811718,3228.5,3228.2,40.8]
[1736914698319,3.29811718,3228.5,3228.2,41.10991]
[1736914698821,3.29811718,3228.5,3228.4,0.3099]
[1736914699124,3.6625,3228.8,3228.7,0.30987]
[1736914699423,0.25147693,3229.2,3228.4,40.8]
[1736914699623,2.41875707,3229.3,3229.1,0.30983]
[1736914699824,2.41875707,3229.3,3228.7,3.2078]
[1736914699825,2.41875707,3229.3,3229.2,0.30982]
[1736914700219,5.92981778,3229.3,3229.1,0.30982]
[1736914701020,5.92981778,3229.3,3228.7,3.2078]
[1736914701217,2.72859707,3229.0,3228.4,40.8]
[1736914701413,2.41875707,3228.7,3228.6,0.30988]
[1736914701618,3.41966096,3228.9,3228.7,0.30986]
[1736914701825,5.83841803,3229.0,3228.7,0.30986]
[1736914702022,5.83841803,3229.0,3228.4,40.8]
[1736914702221,2.41875707,3228.7,3228.4,40.8]
[1736914702428,2.41875707,3228.7,3228.3,3.6943]
[1736914702429,2.41875707,3228.7,3228.3,3.5177]
[1736914702629,3.4351511,3228.6,3228.3,3.5177]
[1736914702930,0.4742,3228.5,3228.3,3.5177]
[1736914703124,0.4742,3228.5,3228.3,3.2078]
[1736914703324,0.4742,3228.5,3228.4,0.3099]
[1736914703628,3.72891357,3228.5,3228.4,0.3099]
[1736914704834,3.25471357,3228.5,3228.4,0.3099]
[1736914705031,2.41875707,3228.7,3228.5,0.30988]
[1736914705830,2.91965707,3229.0,3228.3,3.2078]
[1736914706034,2.91965707,3229.0,3228.7,0.30987]
[1736914706229,3.25908526,3228.8,3228.7,0.30987]
[1736914706533,2.91965707,3229.0,3228.8,0.30986]
[1736914707028,3.25908526,3228.9,3228.4,1.4119]
[1736914707230,3.25908526,3228.9,3228.8,0.30986]
[1736914709635,3.25908526,3228.9,3228.7,0.30986]
[1736914709838,3.25908526,3228.9,3228.4,1.4119]
[1736914710233,3.25908526,3228.9,3228.8,0.30986]
[1736914711034,0.5009,3229.0,3228.4,1.4119]
[1736914711237,0.4744,3229.2,3229.1,0.30983]
[1736914711540,0.4744,3229.2,3228.7,3.2078]
[1736914711541,3.2078,3229.5,3229.3,0.3098]
[1736914711733,3.2078,3229.5,3228.7,3.2078]
[1736914711938,3.7019,3229.5,3229.4,40.8]
[1736914712441,7.31955057,3229.5,3229.4,40.8]
[1736914712737,0.30986,3228.8,3228.3,0.3099]
[1736914712943,2.41875707,3228.6,3228.3,3.2078]
[1736914713140,0.30989,3228.5,3228.4,40.8]
[1736914713342,3.85653067,3228.5,3228.4,40.8]
[1736914713535,3.54664067,3228.5,3227.8,3.2078]
[1736914713838,3.54664067,3228.5,3227.8,0.30995]
[1736914713839,0.30992,3228.2,3227.8,0.30995]
[1736914714039,0.30992,3228.2,3227.4,3.2078]
[1736914714040,2.41875707,3228.0,3227.4,3.2078]
[1736914714236,0.30996,3227.8,3227.5,0.30998]
[1736914714433,0.30996,3227.8,3227.4,3.2078]
[1736914714434,4.37855591,3227.9,3227.7,0.30996]
[1736914714841,1.23795,3227.9,3227.6,41.10997]
[1736914715038,3.45055591,3227.8,3227.6,41.10997]
[1736914715340,3.76051591,3227.8,3227.6,40.8]
[1736914715741,3.45055591,3227.8,3227.6,40.8]
[1736914715943,0.30996,3227.7,3227.6,40.8]
[1736914716345,3.76051591,3227.8,3227.6,40.8]
[1736914716941,2.72871707,3227.7,3227.6,40.8]
[1736914717336,2.72871707,3227.7,3227.0,3.2078]
[1736914717337,0.31002,3227.1,3227.0,3.2078]
[1736914717537,0.31002,3227.1,3226.8,0.31004]
[1736914717736,3.71531534,3227.1,3226.9,40.8]
[1736914717939,4.20331534,3227.1,3226.9,40.8]
[1736914718243,0.31003,3227.0,3226.9,40.8]
[1736914718548,0.4954,3227.0,3226.9,41.11004]
[1736914718845,3.89329534,3227.1,3226.9,41.11004]
[1736914718846,3.89329534,3227.1,3226.9,40.8]
[1736914719041,3.89329534,3227.1,3226.9,41.11003]
[1736914719235,3.40529534,3227.1,3226.9,40.8]
[1736914719436,3.2078,3227.4,3226.9,40.8]
[1736914719639,3.2078,3227.4,3227.1,0.31002]
[1736914720243,3.22414707,3227.5,3227.2,0.31001]
[1736914720443,3.22413707,3227.5,3227.0,3.6943]
[1736914720643,3.48479138,3227.4,3227.3,0.31]
[1736914721045,3.48479138,3227.6,3227.5,0.30998]
[1736914721645,0.4651,3227.7,3227.5,0.30998]
[1736914721844,0.4651,3227.7,3227.1,0.4778]
[1736914722046,0.30998,3227.6,3227.3,0.31]
[1736914722247,0.4651,3227.7,3227.5,0.30998]
[1736914722545,6.42451707,3227.8,3227.1,0.4778]
[1736914722546,3.6958,3227.8,3227.7,0.30996]
[1736914722742,3.6958,3227.8,3227.1,0.4778]
[1736914722941,0.30999,3227.5,3227.2,0.31001]
[1736914723150,0.30999,3227.5,3227.1,0.31002]
[1736914723151,0.31,3227.4,3227.1,0.31002]
[1736914723343,3.65225433,3227.4,3227.3,40.8]
[1736914723544,3.34225433,3227.4,3227.3,40.8]
[1736914724146,3.34225433,3227.4,3227.3,41.11]
[1736914724449,3.34225433,3227.4,3227.3,40.8]
[1736914726254,3.34225433,3227.4,3227.3,41.11]
[1736914726954,3.34225433,3227.4,3227.3,40.8]
[1736914727349,3.34225433,3227.4,3227.3,41.11]
[1736914727556,3.34225433,3227.4,3227.3,40.8]
[1736914728150,3.34225433,3227.4,3227.3,41.11]
[1736914729645,3.65224433,3227.4,3227.3,40.8]
[1736914729855,3.34225433,3227.4,3227.3,40.8]
[1736914730048,3.34225433,3227.4,3227.3,41.11]
[1736914733358,3.34225433,3227.4,3227.3,41.5665]
[1736914733555,2.90675707,3227.8,3227.7,0.30997]
[1736914734053,3.49518617,3227.8,3227.7,0.30997]
[1736914734257,3.2078,3228.0,3227.9,0.30995]
[1736914734562,3.5119919,3227.9,3227.3,40.8]
[1736914734759,0.30999,3227.4,3227.3,40.8]
[1736914735056,0.9731,3227.9,3227.3,40.8]
[1736914735362,3.53886639,3227.6,3227.5,0.30998]
[1736914735659,0.9731,3227.9,3227.3,40.8]
[1736914735855,0.4717,3227.9,3227.8,0.30996]
[1736914736260,3.8511617,3227.9,3227.8,0.30996]
[1736914736453,4.1611117,3227.9,3227.7,0.30996]
[1736914736947,3.8511617,3227.9,3227.8,0.30996]
[1736914739460,4.1611117,3227.9,3227.5,0.30998]
[1736914739658,3.8511617,3227.9,3227.8,0.30996]
[1736914740461,4.1611117,3227.9,3227.7,0.30996]
[1736914741555,0.30996,3227.8,3227.6,0.30997]
[1736914742060,3.56876503,3227.7,3227.6,0.30997]
[1736914742363,3.56876503,3227.7,3227.4,0.4681]
[1736914742556,3.56876503,3227.7,3227.6,0.30997]
[1736914742865,0.30997,3227.7,3227.4,0.4681]
[1736914743263,0.30997,3227.7,3227.6,0.30997]
[1736914743559,3.68929922,3227.7,3227.6,0.30997]
[1736914743858,3.68929922,3227.7,3227.3,40.8]
[1736914743859,0.30998,3227.6,3227.5,0.30998]
[1736914744065,0.79318,3227.6,3227.5,0.30998]
[1736914744364,3.75563645,3227.6,3227.3,40.8]
[1736914744663,2.72874707,3227.4,3227.3,40.8]
[1736914748661,0.30999,3227.4,3227.3,40.8]
[1736914752361,2.72874707,3227.4,3227.3,40.8]
[1736914752564,6.30898572,3227.4,3227.3,40.8]
[1736914752867,6.30898572,3227.4,3226.8,3.2078]
[1736914752868,0.31004,3226.9,3226.8,3.2078]
[1736914753269,3.89027865,3226.9,3226.8,3.2078]
[1736914753571,4.34957865,3226.9,3226.8,3.2078]
[1736914753761,4.34957865,3226.9,3226.8,44.0078]
[1736914753958,4.34957865,3226.9,3226.8,40.8]
[1736914754154,4.03953865,3226.9,3226.3,3.5179]
[1736914754360,0.31008,3226.5,3226.3,3.2078]
[1736914754562,0.31008,3226.5,3226.4,40.8]
[1736914761370,3.32222085,3226.5,3225.8,3.2078]
[1736914761571,0.31012,3226.1,3225.9,0.31013]
[1736914761874,0.31012,3226.1,3226.0,40.8]
[1736914762265,3.63234085,3226.1,3226.0,40.8]
[1736914765372,0.31014,3225.9,3225.8,3.2078]
[1736914765768,3.54557066,3225.9,3225.8,44.0078]
[1736914766364,3.54557066,3225.9,3225.8,40.8]
[1736914773275,3.54557066,3225.9,3225.2,3.6752]
[1736914773276,0.31019,3225.3,3225.2,3.6752]
[1736914773477,0.31019,3225.4,3225.2,3.6752]
[1736914773678,0.31019,3225.4,3225.2,0.4674]
[1736914773887,0.31019,3225.4,3225.3,40.8]
[1736914774182,3.72754945,3225.4,3225.3,40.8]
[1736914777676,3.41735945,3225.4,3225.0,0.9447]
[1736914777884,0.31016,3225.7,3225.0,0.9447]
[1736914778085,0.31016,3225.7,3225.4,0.31017]
[1736914778285,3.45808639,3225.6,3225.5,0.9484]
[1736914780385,3.54676024,3225.7,3225.5,0.9484]
[1736914780988,0.31016,3225.7,3225.5,0.9484]
[1736914781180,5.62655707,3225.8,3225.3,40.8]
[1736914781181,3.27916097,3225.6,3225.3,40.8]
[1736914781385,0.31018,3225.4,3225.3,40.8]
[1736914781785,3.64560051,3225.4,3225.3,40.8]
[1736914786599,0.3102,3225.2,3225.1,0.4746]
[1736914786799,0.31021,3225.1,3225.0,0.4873]
[1736914787205,0.31021,3225.1,3225.0,41.2873]
[1736914788806,0.31023,3224.9,3224.8,3.2078]
[1736914789307,3.79109038,3224.9,3224.8,44.0078]
[1736914790414,6.20984745,3224.9,3224.8,44.0078]
[1736914794104,6.20984745,3224.9,3224.8,44.31805]
[1736914794616,6.20984745,3224.9,3224.8,44.0078]
[1736914794811,6.20984745,3224.9,3224.8,44.31805]
[1736914795212,6.20984745,3224.9,3224.8,44.0078]
[1736914795919,6.20984745,3224.9,3224.8,40.8]
[1736914796819,6.20984745,3224.9,3224.8,41.11024]
[1736914797715,6.20984745,3224.9,3224.8,40.8]
[1736914798321,6.20984745,3224.9,3224.8,41.11024]
[1736914798614,3.2078,3225.3,3225.2,0.3102]
[1736914799017,3.2078,3225.3,3224.8,40.8]
[1736914799018,3.2078,3225.3,3224.9,0.31023]
[1736914799221,2.72897707,3225.1,3224.9,0.31022]
[1736914799419,0.31023,3225.0,3224.8,41.11023]
[1736914799615,4.10052288,3225.0,3224.8,41.11023]
[1736914799816,3.79029288,3225.0,3224.8,40.8]
[1736914800017,0.31023,3224.9,3224.8,40.8]
[1736914800419,3.63442288,3224.9,3224.8,40.8]
[1736914800723,0.31025,3224.7,3224.6,1.3821]
[1736914800922,2.72899707,3224.8,3224.6,1.3821]
[1736914801128,2.41875707,3224.8,3224.7,0.31024]
[1736914801417,0.4661,3225.0,3224.8,0.31023]
[1736914801418,0.77632,3225.0,3224.8,0.31023]
[1736914801623,0.77631,3225.0,3224.8,0.31023]
[1736914801819,3.25452545,3224.9,3224.8,0.31023]
[1736914802420,0.79789,3225.2,3225.0,0.3102]
[1736914802823,3.58948691,3225.1,3225.0,0.3102]
[1736914803028,3.58948691,3225.1,3224.9,0.31022]
[1736914803219,3.89968691,3225.1,3224.9,0.31022]
[1736914803527,3.58948691,3225.1,3225.0,0.31021]
[1736914805831,2.88765707,3225.4,3224.7,0.77561]
[1736914806035,2.88765707,3225.4,3225.3,0.31018]
[1736914806422,6.24199547,3225.4,3225.3,0.31018]
[1736914806621,6.24199547,3225.4,3225.2,0.31019]
[1736914807025,6.24199547,3225.4,3225.3,0.31018]
[1736914807232,9.44979547,3225.4,3225.3,0.31018]
[1736914807825,6.5621384,3225.4,3225.3,0.31018]
[1736914808327,3.2078,3225.4,3225.3,0.31018]
[1736914808719,0.4973,3225.6,3225.5,0.31016]
[1736914809030,2.89065707,3226.0,3225.9,0.31012]
[1736914809224,2.89065707,3226.0,3225.2,0.77548]
[1736914809225,3.2078,3226.2,3226.0,0.31012]
[1736914809529,15.37182369,3226.1,3226.0,0.31012]
[1736914809727,15.37182369,3226.1,3226.0,41.11012]
[1736914809928,12.05124812,3226.1,3226.0,41.11012]
[1736914810125,2.41875707,3226.6,3226.5,0.31007]
[1736914810324,12.54614812,3226.7,3226.6,0.31006]
[1736914810830,16.05476886,3226.7,3226.5,0.31006]
[1736914811027,2.41875707,3226.6,3226.5,0.31006]
[1736914811426,16.05476886,3226.7,3226.1,1.4936]
[1736914811427,0.4949,3226.7,3226.1,1.4936]
[1736914811621,3.48447034,3226.6,3226.5,0.31007]
[1736914813729,0.31008,3226.4,3226.1,1.8037]
[1736914813932,2.41875707,3226.3,3226.1,0.3101]
[1736914814234,5.64422703,3226.3,3226.2,0.3101]
[1736914816731,5.64422703,3226.3,3226.1,0.3101]
[1736914816931,5.64422703,3226.3,3226.0,40.8]
[1736914817234,5.64422703,3226.3,3226.2,0.3101]
[1736914817831,5.64422703,3226.3,3226.1,0.3101]
[1736914818234,3.22546996,3226.3,3226.2,0.3101]
[1736914823640,3.7027,3226.7,3226.6,0.31006]
[1736914824037,7.20013984,3226.7,3226.6,0.31006]
[1736914825134,3.49743984,3226.7,3226.6,0.31006]
[1736914825339,15.25904812,3227.1,3226.6,0.31006]
[1736914825340,12.05124812,3227.1,3227.0,0.31002]
[1736914825643,9.01924812,3227.1,3227.0,0.31002]
[1736914825839,9.01924812,3227.1,3227.0,41.11002]
[1736914826037,9.01924812,3227.1,3227.0,42.08412]
[1736914826238,3.2078,3227.6,3227.5,0.30997]
[1736914826839,3.2078,3227.6,3227.5,41.10997]
[1736914827043,5.62655707,3227.6,3227.5,40.8]
[1736914827247,9.04508772,3227.6,3226.8,3.2078]
[1736914827439,2.41875707,3227.1,3226.8,3.2078]
[1736914827648,2.41875707,3227.1,3227.0,0.31002]
[1736914827841,0.31,3227.2,3227.0,0.31002]
[1736914828245,3.68952328,3227.2,3227.0,0.31002]
[1736914828548,3.68952328,3227.2,3226.8,44.0078]
[1736914828744,3.37952328,3227.2,3226.8,44.0078]
[1736914828944,3.37952328,3227.2,3227.0,0.31001]
[1736914829146,3.56460603,3227.3,3227.0,0.31001]
[1736914829445,0.30999,3227.3,3226.8,44.0078]
[1736914829648,3.40007609,3227.2,3227.1,0.31001]
[1736914830445,3.71007609,3227.3,3227.0,0.31001]
[1736914830644,0.31,3227.3,3226.9,3.2078]
[1736914830850,0.31002,3227.0,3226.9,3.2078]
[1736914831045,3.2078,3227.0,3226.8,40.8]
[1736914831241,3.2078,3227.0,3226.1,3.6788]
[1736914831242,0.31005,3226.7,3226.4,0.31008]
[1736914831445,0.9269,3226.9,3226.8,0.31004]
[1736914831754,5.62655707,3227.4,3226.5,3.2078]
[1736914831954,5.62655707,3227.4,3227.2,0.30999]
[1736914831955,0.4737,3227.3,3227.2,0.30999]
[1736914832158,3.77884939,3227.3,3227.2,41.10999]
[1736914832548,6.19760646,3227.3,3227.2,41.10999]
[1736914833756,6.19760646,3227.3,3227.2,40.8]
[1736914834661,6.19760646,3227.3,3227.2,41.11]
[1736914835457,0.31005,3226.7,3226.5,3.2078]
[1736914835663,0.4566,3226.6,3226.5,3.51787]
[1736914835857,3.85776884,3226.6,3226.4,0.31007]
[1736914836064,3.85776884,3226.6,3226.5,40.8]
[1736914836463,4.16782884,3226.6,3226.5,40.8]
[1736914836755,5.12232884,3226.6,3226.5,40.8]
[1736914836960,5.17192183,3226.6,3226.5,40.8]
[1736914837359,4.68142183,3226.6,3226.5,40.8]
[1736914837559,5.17192183,3226.6,3226.5,40.8]
[1736914837765,0.31011,3226.1,3226.0,3.2078]
[1736914838152,3.82718901,3226.1,3226.0,44.0078]